bitfinex/quotes_SOLUSD_20250531
["timestamp","ask_amount","ask_price","bid_price","bid_amount"]
[1748706353510,10.54,155.64,155.63,18.01737848]
[1748706354218,10.54,155.64,155.61,6.4259319]
[1748706354814,0.14216157,155.63,155.6,6.4266087]
[1748706355013,0.28432314,155.63,155.59,8.96556571]
[1748706355198,11.87620526,155.63,155.59,8.96556571]
[1748706355808,0.28432314,155.63,155.59,20.55744783]
[1748706356225,11.87620526,155.63,155.59,8.96556571]
[1748706356910,0.28432314,155.63,155.6,11.59188212]
[1748706357312,0.14216157,155.63,155.6,11.59188212]
[1748706358011,0.14216157,155.63,155.6,18.01822898]
[1748706358732,11.87620526,155.63,155.59,8.96551613]
[1748706358907,0.28432314,155.63,155.59,20.55739825]
[1748706359524,11.87620526,155.63,155.59,8.96551613]
[1748706359717,11.87620526,155.63,155.59,8.96559085]
[1748706360128,18.30173468,155.63,155.59,2.53848853]
[1748706360305,0.14216157,155.61,155.59,2.53848853]
[1748706360626,10.54,155.64,155.6,18.01861733]
[1748706360817,10.54,155.64,155.62,11.59188212]
[1748706361018,10.54,155.64,155.63,11.59188212]
[1748706361729,10.54,155.66,155.63,11.59188212]
[1748706362035,10.54,155.66,155.64,11.59188212]
[1748706362205,10.54,155.66,155.65,6.42467073]
[1748706364424,0.14216157,155.67,155.63,11.59188212]
[1748706364731,10.54,155.66,155.63,11.59188212]
[1748706365028,10.54,155.66,155.64,11.59188212]
[1748706365409,10.54,155.66,155.65,11.59188212]
[1748706365617,0.28432314,155.69,155.65,11.59188212]
[1748706365815,10.54,155.68,155.66,11.59188212]
[1748706366114,0.28432314,155.67,155.61,6.42632221]
[1748706366313,18.3003763,155.67,155.62,11.59188212]
[1748706366713,18.94031693,155.67,155.62,11.59188212]
[1748706367212,0.28432314,155.65,155.62,11.59188212]
[1748706367429,13.40830526,155.65,155.6,18.01855767]
[1748706367638,1.81642314,155.65,155.61,11.59188212]
[1748706368517,26.48470608,155.65,155.59,8.96547182]
[1748706368733,26.48470608,155.65,155.6,11.59188212]
[1748706368940,11.59188212,155.64,155.59,20.55735394]
[1748706369239,0.28432314,155.62,155.59,2.53848853]
[1748706369436,10.52,155.61,155.59,2.53848853]
[1748706369938,0.14216157,155.6,155.59,2.53848853]
[1748706370129,0.28432314,155.6,155.59,2.53848853]
[1748706372450,11.87620526,155.6,155.59,2.53848853]
[1748706373011,0.28432314,155.6,155.59,2.53848853]
[1748706374217,10.52,155.61,155.59,20.55751892]
[1748706374645,10.66216157,155.61,155.6,11.59188212]
[1748706374837,10.52,155.61,155.59,8.9656368]
[1748706375017,0.14216157,155.6,155.59,2.53848853]
[1748706375218,0.28432314,155.6,155.59,2.53848853]
[1748706375545,0.14216157,155.6,155.59,2.53848853]
[1748706375844,10.52,155.61,155.59,20.55751892]
[1748706376016,10.52,155.61,155.59,2.53848853]
[1748706376219,10.52,155.61,155.59,14.13037065]
[1748706376450,10.52,155.61,155.59,20.55751892]
[1748706377344,10.52,155.61,155.59,8.9656368]
[1748706377524,10.52,155.61,155.59,20.55751892]
[1748706377921,10.52,155.61,155.59,2.53848853]
[1748706378129,10.52,155.61,155.59,8.96560956]
[1748706379045,10.52,155.61,155.59,20.55749168]
[1748706379345,10.66216157,155.61,155.59,20.55749168]
[1748706380657,10.52,155.61,155.6,11.59188212]
[1748706380842,10.52,155.61,155.6,18.01861733]
[1748706381043,10.52,155.63,155.6,18.01861733]
[1748706381554,10.52,155.63,155.62,11.59188212]
[1748706382933,10.52,155.63,155.62,6.42590926]
[1748706383138,10.52,155.63,155.62,18.01779138]
[1748706388252,10.52,155.63,155.62,11.59188212]
[1748706388450,10.52,155.63,155.62,18.01779138]
[1748706391740,10.52,155.63,155.62,6.42590926]
[1748706391941,10.52,155.63,155.62,11.59188212]
[1748706392838,10.52,155.63,155.62,18.01779138]
[1748706397235,10.52,155.63,155.62,6.42590926]
[1748706397441,10.52,155.63,155.62,18.01779138]
[1748706398159,10.52,155.63,155.62,6.42590926]
[1748706398365,10.52,155.63,155.62,18.01779138]
[1748706399767,10.52,155.63,155.61,18.01808868]
[1748706403696,10.66216157,155.63,155.62,18.01779138]
[1748706404245,10.66216157,155.63,155.62,11.59188212]
[1748706404656,10.66216157,155.63,155.62,18.01779138]
[1748706406874,10.66216157,155.63,155.6,6.42673521]
[1748706407071,10.66216157,155.63,155.62,11.59188212]
[1748706407476,10.66216157,155.63,155.61,11.59188212]
[1748706408858,0.14216157,155.62,155.61,11.59188212]
[1748706409075,0.14216157,155.62,155.6,18.01861733]
[1748706409572,0.14216157,155.62,155.61,11.59188212]
[1748706409771,0.14216157,155.62,155.6,6.42673521]
[1748706409956,0.14216157,155.62,155.61,11.59188212]
[1748706410479,0.14216157,155.62,155.6,18.01861733]
[1748706411692,0.28432314,155.62,155.6,11.59188212]
[1748706411864,0.28432314,155.62,155.59,14.13037065]
[1748706412863,6.71026318,155.62,155.59,2.53848853]
[1748706413067,18.3021453,155.62,155.59,2.53848853]
[1748706413883,11.59188212,155.6,155.59,2.53848853]
[1748706414084,11.87620526,155.6,155.59,2.53848853]
[1748706414288,51.73620526,155.6,155.59,2.53848853]
[1748706414993,40.14432314,155.6,155.59,2.53848853]
[1748706415360,10.78432314,155.6,155.59,2.53848853]
[1748706415777,48.09252996,155.6,155.59,2.53848853]
[1748706416072,29.4428811,155.6,155.59,2.53848853]
[1748706416586,48.09252996,155.6,155.59,2.53848853]
[1748706417166,56.15082996,155.6,155.59,2.53848853]
[1748706417917,64.44644563,155.6,155.59,2.53848853]
[1748706418563,211.34644563,155.6,155.59,2.53848853]
[1748706418782,199.11462288,155.6,155.59,0.87188853]
[1748706418981,231.95685614,155.6,155.59,0.87188853]
[1748706419693,227.2060192,155.6,155.59,0.87188853]
[1748706420194,227.34818077,155.6,155.59,0.87188853]
[1748706421569,175.87629865,155.6,155.59,0.87188853]
[1748706421888,187.46818077,155.6,155.59,0.87188853]
[1748706424708,232.11782963,155.6,155.59,0.87188853]
[1748706424914,270.62782963,155.6,155.59,0.87188853]
[1748706425275,201.87629865,155.6,155.59,0.87188853]
[1748706425498,253.34818077,155.6,155.59,0.87188853]
[1748706426519,271.99782963,155.6,155.59,0.87188853]
[1748706427102,26.0,155.56,155.52,0.8683707]
[1748706427306,11.59188212,155.53,155.52,0.8683707]
[1748706427503,22.09188212,155.53,155.52,0.8683707]
[1748706427943,10.5,155.53,155.52,0.8683707]
[1748706428127,10.50371322,155.53,155.52,0.8683707]
[1748706428307,22.09559534,155.53,155.52,0.8683707]
[1748706430422,0.28432314,155.55,155.52,0.8683707]
[1748706430652,10.5,155.53,155.52,0.8683707]
[1748706434242,28.80583298,155.53,155.52,0.8683707]
[1748706436234,76.33273298,155.53,155.52,0.8683707]
[1748706441121,65.38079149,155.53,155.52,0.8683707]
[1748706441441,95.62232247,155.53,155.52,0.8683707]
[1748706443335,76.97267361,155.53,155.52,0.8683707]
[1748706446436,65.38079149,155.53,155.52,0.8683707]
[1748706446751,76.97267361,155.53,155.52,0.8683707]
[1748706446947,8.28684063,155.53,155.52,0.8683707]
[1748706447155,29.16145047,155.53,155.52,0.8683707]
[1748706447451,29.44577361,155.53,155.52,0.8683707]
[1748706447747,48.09542247,155.53,155.52,0.8683707]
[1748706447953,87.97542247,155.53,155.52,0.8683707]
[1748706448856,95.82422247,155.53,155.52,0.8683707]
[1748706450955,84.23234035,155.53,155.52,0.8683707]
[1748706451259,95.82422247,155.53,155.52,0.8683707]
[1748706452834,45.44422247,155.53,155.52,0.8683707]
[1748706453040,18.98874063,155.53,155.52,0.8683707]
[1748706453248,11.13994063,155.53,155.52,0.8683707]
[1748706453547,11.42426377,155.53,155.52,0.8683707]
[1748706453861,29.16145047,155.53,155.52,0.8683707]
[1748706454044,48.09542247,155.53,155.52,0.8683707]
[1748706457036,36.50354035,155.53,155.52,0.8683707]
[1748706457358,48.09542247,155.53,155.52,0.8683707]
[1748706457539,36.50354035,155.53,155.52,0.8683707]
[1748706457736,48.09542247,155.53,155.52,0.8683707]
[1748706459459,37.59542247,155.53,155.52,0.8683707]
[1748706459676,48.09542247,155.53,155.52,0.8683707]
[1748706459964,86.60542247,155.53,155.52,0.8683707]
[1748706462750,18.933972,155.52,155.45,17.89304621]
[1748706462958,0.28432314,155.5,155.45,17.89304621]
[1748706463166,0.28432314,155.5,155.45,11.59188212]
[1748706463754,0.28432314,155.48,155.45,11.59188212]
[1748706465251,0.28432314,155.48,155.44,11.59188212]
[1748706465953,0.28432314,155.48,155.45,11.59188212]
[1748706466962,0.28432314,155.48,155.44,6.43322797]
[1748706467255,0.28432314,155.48,155.45,11.59188212]
[1748706469366,7.35597875,155.48,155.43,6.43376439]
[1748706469571,7.35597875,155.48,155.44,11.59188212]
[1748706469962,0.28432314,155.48,155.45,11.59188212]
[1748706471377,0.28432314,155.48,155.44,6.43322401]
[1748706471562,0.28432314,155.48,155.45,11.59188212]
[1748706471766,0.28432314,155.48,155.44,6.43322401]
[1748706471767,10.5,155.49,155.47,11.59188212]
[1748706471968,10.5,155.49,155.46,11.59188212]
[1748706472171,10.5,155.49,155.48,11.59188212]
[1748706472470,10.5,155.49,155.47,11.59188212]
[1748706472674,10.5,155.49,155.44,22.51660023]
[1748706472883,10.5,155.49,155.47,11.59188212]
[1748706473974,10.5,155.49,155.47,18.0239361]
[1748706474485,10.5,155.49,155.47,11.59188212]
[1748706474852,10.5,155.49,155.47,6.43205263]
[1748706475179,10.5,155.49,155.48,11.59188212]
[1748706475398,10.5,155.49,155.47,11.59188212]
[1748706476047,10.5,155.49,155.47,18.02395057]
[1748706477153,10.5,155.49,155.48,11.59188212]
[1748706479579,10.5,155.49,155.44,6.43335048]
[1748706479759,10.5,155.49,155.47,11.59188212]
[1748706479962,10.5,155.49,155.48,11.59188212]
[1748706480184,89.03573459,155.54,155.48,11.59188212]
[1748706480357,10.5,155.5,155.49,1.5063]
[1748706480681,10.5,155.5,155.49,13.09818212]
[1748706481770,10.5,155.5,155.49,19.52946387]
[1748706484172,87.66,155.54,155.49,35.60766825]
[1748706484381,87.66,155.54,155.53,11.59188212]
[1748706485790,87.66,155.54,155.53,18.02150984]
[1748706486465,87.66,155.54,155.53,6.42962772]
[1748706486684,87.66,155.54,155.53,18.02150984]
[1748706489561,77.16,155.54,155.53,18.02150984]
[1748706491686,10.48,155.55,155.53,18.02150984]
[1748706491867,10.48,155.55,155.54,11.59188212]
[1748706492069,10.48,155.55,155.53,6.42962772]
[1748706492274,10.48,155.55,155.54,11.59188212]
[1748706492673,10.48,155.55,155.54,18.02109647]
[1748706496677,10.48,155.55,155.54,6.42921435]
[1748706496877,10.48,155.55,155.54,18.02109647]
[1748706497393,10.48,155.55,155.53,6.42949929]
[1748706498186,10.48,155.55,155.52,11.59188212]
[1748706498187,10.48,155.55,155.52,6.43004115]
[1748706498365,10.48,155.55,155.51,87.8]
[1748706498366,11.59188212,155.53,155.48,6.43169539]
[1748706498799,11.59188212,155.5,155.44,6.43335048]
[1748706498976,10.48,155.49,155.44,6.43335048]
[1748706499183,22.07188212,155.49,155.44,18.0252326]
[1748706499386,10.48,155.49,155.45,11.59188212]
[1748706499784,10.48,155.49,155.46,11.59188212]
[1748706500488,10.48,155.49,155.47,6.43210908]
[1748706500888,10.48,155.49,155.47,18.0239912]
[1748706501077,10.48,155.49,155.48,11.59188212]
[1748706502376,10.48,155.49,155.48,18.02357751]
[1748706504097,11.59188212,155.56,155.48,34.10281599]
[1748706504282,10.48,155.55,155.51,11.59188212]
[1748706504593,10.48,155.55,155.52,6.43004115]
[1748706505301,10.48,155.55,155.52,18.02192327]
[1748706506874,10.48,155.55,155.53,11.59188212]
[1748706507771,10.48,155.55,155.54,11.59188212]
[1748706509200,10.48,155.55,155.54,18.02109647]
[1748706512805,10.48,155.55,155.54,11.59188212]
[1748706513008,10.48,155.55,155.52,11.59188212]
[1748706513305,10.48,155.55,155.51,18.02233675]
[1748706514086,22.07188212,155.55,155.51,6.43045463]
[1748706515503,10.48,155.55,155.51,18.02233675]
[1748706520691,10.48,155.55,155.53,11.59188212]
[1748706522293,10.48,155.55,155.54,18.02109647]
[1748706525614,10.48,155.55,155.54,6.42921435]
[1748706528710,10.48,155.55,155.54,18.02109647]
[1748706529132,10.48,155.55,155.52,26.0]
[1748706529317,10.48,155.55,155.53,11.59188212]
[1748706531122,10.48,155.55,155.53,18.02114455]
[1748706531642,10.48,155.55,155.54,11.59188212]
[1748706532409,10.48,155.55,155.54,18.02109647]
[1748706533335,10.48,155.55,155.54,6.42921435]
[1748706534013,10.48,155.55,155.53,18.02139051]
[1748706535131,10.48,155.56,155.53,18.02139051]
[1748706538222,10.48,155.56,155.53,6.42950839]
[1748706538420,10.48,155.56,155.53,18.02139051]
[1748706542541,10.48,155.56,155.48,122.52885385]
[1748706542542,22.07188212,155.56,155.48,122.52885385]
[1748706542738,22.07188212,155.56,155.5,11.59188212]
[1748706542739,19.38878212,155.55,155.5,11.59188212]
[1748706542941,7.7969,155.55,155.51,6.43045463]
[1748706543249,7.7969,155.55,155.52,11.59188212]
[1748706543452,7.7969,155.55,155.53,11.59188212]
[1748706545039,7.7969,155.55,155.54,6.42921435]
[1748706545651,7.7969,155.55,155.54,18.02109647]
[1748706548039,7.7969,155.55,155.52,6.43004115]
[1748706548222,7.7969,155.55,155.52,18.02192327]
[1748706548932,7.7969,155.55,155.52,11.59188212]
[1748706549135,7.7969,155.55,155.51,6.43045463]
[1748706550752,7.7969,155.55,155.52,11.59188212]
[1748706550938,7.7969,155.55,155.53,11.59188212]
[1748706552355,7.7969,155.55,155.52,6.43004115]
[1748706552536,7.7969,155.55,155.53,11.59188212]
[1748706554046,7.7969,155.55,155.54,6.42921435]
[1748706558546,7.7969,155.55,155.53,6.42962772]
[1748706558944,10.46,155.54,155.53,6.42962772]
[1748706563640,18.2569,155.55,155.53,6.42962772]
[1748706565338,1.5864,155.59,155.54,18.02109647]
[1748706565543,10.46,155.58,155.56,11.59188212]
[1748706567056,10.46,155.58,155.57,11.59188212]
[1748706567357,10.46,155.58,155.57,18.01985666]
[1748706569849,10.46,155.58,155.57,6.42797454]
[1748706570268,10.46,155.58,155.56,32.42829321]
[1748706576669,10.46,155.58,155.56,44.02017533]
[1748706577359,10.46,155.58,155.57,11.59188212]
[1748706577669,10.46,155.58,155.56,44.02017533]
[1748706578043,10.46,155.58,155.56,32.42829321]
[1748706581450,10.46,155.58,155.56,6.42829321]
[1748706582858,22.05188212,155.58,155.54,26.0]
[1748706583048,11.59188212,155.55,155.5,87.8]
[1748706583249,8.46634063,155.57,155.49,11.59188212]
[1748706583250,11.59188212,155.54,155.49,11.59188212]
[1748706583574,10.46,155.53,155.49,37.59188212]
[1748706584255,10.46,155.53,155.5,6.43086816]
[1748706584966,10.46,155.53,155.49,44.02303278]
[1748706585580,22.05188212,155.53,155.49,32.43115066]
[1748706589761,10.46,155.53,155.49,32.43115066]
[1748706589965,22.05188212,155.53,155.49,32.43115066]
[1748706591083,22.05188212,155.53,155.49,26.0]
[1748706591277,0.28432314,155.52,155.49,26.0]
[1748706591477,19.83510526,155.52,155.47,37.59188212]
[1748706591966,26.26532305,155.52,155.47,37.59188212]
[1748706592169,19.83510526,155.52,155.47,44.02393257]
[1748706592665,26.26520196,155.52,155.47,44.02393257]
[1748706593362,26.26520196,155.52,155.47,18.02393257]
[1748706593564,11.59188212,155.51,155.47,6.43205045]
[1748706595384,11.59188212,155.49,155.45,6.43293663]
[1748706595567,10.46,155.48,155.45,6.43293663]
[1748706596359,10.46,155.48,155.45,18.02481875]
[1748706598279,10.46,155.48,155.44,6.43318932]
[1748706599767,22.05188212,155.48,155.44,6.43318932]
[1748706600559,0.28432314,155.47,155.44,6.43318932]
[1748706600790,0.28432314,155.47,155.44,18.02507144]
[1748706601967,11.59188212,155.45,155.42,6.43417835]
[1748706602185,0.28432314,155.45,155.42,6.43417835]
[1748706602384,18.7647,155.48,155.44,11.59188212]
[1748706602600,10.46,155.48,155.46,11.59188212]
[1748706602971,10.46,155.48,155.47,11.59188212]
[1748706604082,10.46,155.48,155.47,18.0239912]
[1748706604493,10.46,155.52,155.47,34.10426392]
[1748706604684,10.46,155.52,155.51,11.59188212]
[1748706605594,10.46,155.52,155.51,18.02233675]
[1748706608266,10.46,155.52,155.51,6.43045463]
[1748706609702,10.46,155.52,155.51,18.02233675]
[1748706610196,11.24775133,155.57,155.51,60.09847333]
[1748706610400,10.46,155.55,155.53,11.59188212]
[1748706610974,10.46,155.55,155.54,11.59188212]
[1748706611674,10.46,155.55,155.54,18.02109647]
[1748706630630,10.46,155.55,155.54,11.59188212]
[1748706631130,10.46,155.55,155.54,18.02109647]
[1748706631636,10.46,155.55,155.54,11.59188212]
[1748706635056,22.05188212,155.55,155.51,26.0]
[1748706635435,0.28432314,155.54,155.51,26.0]
[1748706636751,0.28432314,155.52,155.48,11.59188212]
[1748706636963,0.28432314,155.52,155.48,37.59188212]
[1748706637331,0.28432314,155.52,155.48,26.0]
[1748706637960,0.28432314,155.52,155.48,44.02321829]
[1748706639262,30.01458212,155.55,155.5,11.59188212]
[1748706639945,0.14216157,155.54,155.51,6.43045463]
[1748706640337,0.14216157,155.54,155.5,18.02267467]
[1748706640553,0.28432314,155.54,155.5,18.02267467]
[1748706641879,11.87620526,155.54,155.5,6.43079255]
[1748706648470,0.28432314,155.54,155.5,6.43079255]
[1748706648670,11.87620526,155.54,155.5,6.43079255]
[1748706649460,11.87620526,155.54,155.49,18.02306574]
[1748706649665,11.87620526,155.54,155.49,6.43118362]
[1748706650447,11.87620526,155.54,155.49,18.02306574]
[1748706650957,0.28432314,155.54,155.49,18.02306574]
[1748706651654,18.4227,155.55,155.51,11.59188212]
[1748706651976,10.46,155.55,155.51,11.59188212]
[1748706653068,10.46,155.55,155.51,18.02220096]
[1748706653244,22.05188212,155.55,155.51,6.43031884]
[1748706654062,11.87620526,155.54,155.5,6.43081568]
[1748706654373,11.87620526,155.54,155.48,37.59188212]
[1748706655056,11.87620526,155.54,155.49,6.43116101]
[1748706655658,11.87620526,155.54,155.49,18.02304313]
[1748706657954,0.28432314,155.54,155.51,11.59188212]
[1748706658357,0.28432314,155.54,155.5,11.59188212]
[1748706660290,10.46,155.55,155.51,18.02233675]
[1748706661060,10.46,155.55,155.51,6.43045463]
[1748706662362,10.46,155.55,155.51,18.02233675]
[1748706664167,10.46,155.55,155.52,11.59188212]
[1748706664370,10.46,155.55,155.53,11.59188212]
[1748706665098,10.46,155.55,155.54,11.59188212]
[1748706665464,10.46,155.55,155.53,11.59188212]
[1748706665800,10.46,155.55,155.52,11.59188212]
[1748706666313,10.46,155.55,155.53,11.59188212]
[1748706667406,10.46,155.55,155.52,11.59188212]
[1748706667567,10.46,155.55,155.51,18.02233675]
[1748706667896,22.05188212,155.55,155.51,6.43045463]
[1748706668679,22.05188212,155.55,155.51,18.02233675]
[1748706668680,10.46,155.55,155.51,18.02233675]
[1748706668874,10.46,155.55,155.52,11.59188212]
[1748706669199,10.46,155.55,155.53,11.59188212]
[1748706670371,10.46,155.55,155.54,18.02109647]
[1748706673804,10.46,155.55,155.54,44.02109647]
[1748706674191,10.4,155.59,155.54,60.09413234]
[1748706674392,10.4,155.59,155.57,11.59188212]
[1748706675880,10.4,155.59,155.54,48.50225022]
[1748706676206,10.4,155.59,155.56,11.59188212]
[1748706676677,10.4,155.59,155.56,6.42838776]
[1748706677489,10.4,155.59,155.56,18.02026988]
[1748706677877,11.87620526,155.62,155.57,11.59188212]
[1748706678077,10.4,155.61,155.57,11.59188212]
[1748706678303,10.4,155.61,155.58,11.59188212]
[1748706678904,10.4,155.61,155.59,11.59188212]
[1748706679887,10.4,155.61,155.58,18.0194435]
[1748706680807,10.4,155.61,155.58,6.42756138]
[1748706683601,10.4,155.61,155.59,11.59188212]
[1748706683807,10.4,155.61,155.6,6.42673521]
[1748706685511,10.4,155.61,155.59,6.42714056]
[1748706686009,10.4,155.61,155.58,6.42756138]
[1748706686209,10.4,155.61,155.58,18.0194435]
[1748706688186,10.4,155.61,155.58,6.42756138]
[1748706689508,10.4,155.61,155.58,18.0194435]
[1748706690106,10.4,155.61,155.59,11.59188212]
[1748706690330,10.4,155.61,155.58,18.0194435]
[1748706690692,10.4,155.61,155.59,11.59188212]
[1748706691493,10.4,155.61,155.6,6.42673521]
[1748706692913,10.4,155.61,155.6,18.01861733]
[1748706696021,10.4,155.61,155.6,6.42673521]
[1748706696220,10.4,155.61,155.6,18.01861733]
[1748706696729,10.4,155.61,155.6,6.42673521]
[1748706708320,10.4,155.61,155.6,18.01861733]
[1748706708830,10.38,155.63,155.6,18.01861733]
[1748706710951,10.38,155.63,155.61,11.59188212]
[1748706711247,10.38,155.63,155.62,6.42590926]
[1748706715428,10.38,155.63,155.61,6.42632221]
[1748706716240,10.38,155.63,155.61,13.8559837]
[1748706719939,1.5746,155.67,155.62,7.42966149]
[1748706720126,1.5746,155.67,155.64,7.42966149]
[1748706721739,1.5746,155.67,155.61,62.15212774]
[1748706721949,1.5746,155.67,155.63,11.60590765]
[1748706722122,1.5746,155.67,155.64,11.60590765]
[1748706722451,0.28432314,155.67,155.64,11.60590765]
[1748706722628,10.38,155.68,155.66,11.60590765]
[1748706722833,10.38,155.68,155.67,11.60590765]
[1748706723719,10.38,155.73,155.68,22.48201438]
[1748706723951,10.38,155.73,155.72,11.60590765]
[1748706724454,10.38,155.73,155.71,11.60590765]
[1748706724748,10.38,155.73,155.69,65.64]
[1748706725048,10.38,155.73,155.7,11.60590765]
[1748706725348,10.38,155.73,155.72,11.60590765]
[1748706725731,10.38,155.73,155.72,18.02769033]
[1748706726624,12.62137965,155.84,155.75,26.0]
[1748706726934,10.38,155.82,155.79,11.60590765]
[1748706727253,10.38,155.82,155.78,11.60590765]
[1748706727440,10.38,155.82,155.77,11.60590765]
[1748706727441,21.98590765,155.82,155.77,11.60590765]
[1748706727646,11.60590765,155.8,155.75,37.60590765]
[1748706727949,11.60590765,155.8,155.76,6.42013353]
[1748706729434,11.60590765,155.8,155.75,44.02636642]
[1748706729755,11.60590765,155.8,155.75,18.02636642]
[1748706730147,11.60590765,155.79,155.75,6.42045877]
[1748706730545,11.89023079,155.8,155.75,18.02636642]
[1748706732544,0.28432314,155.79,155.75,18.02636642]
[1748706732746,10.38,155.82,155.78,11.60590765]
[1748706732945,10.38,155.82,155.79,11.60590765]
[1748706733145,10.38,155.82,155.75,22.47182313]
[1748706733146,10.38,155.82,155.8,11.60590765]
[1748706733332,10.38,155.82,155.79,11.60590765]
[1748706734140,10.38,155.82,155.8,11.60590765]
[1748706734335,10.38,155.82,155.81,18.02398094]
[1748706735654,10.36,155.86,155.81,18.02398094]
[1748706735856,10.36,155.86,155.85,11.60590765]
[1748706736029,10.36,155.86,155.81,48.46325652]
[1748706736234,10.36,155.86,155.84,11.60590765]
[1748706736428,10.36,155.86,155.84,18.02270806]
[1748706737107,10.36,155.86,155.84,6.41680041]
[1748706737277,10.36,155.86,155.85,11.60590765]
[1748706737958,10.36,155.86,155.84,18.02270806]
[1748706738160,21.96590765,155.86,155.81,37.60590765]
[1748706739059,21.96590765,155.86,155.81,44.02386554]
[1748706739841,10.36,155.86,155.82,11.60590765]
[1748706740744,10.36,155.86,155.82,18.02347895]
[1748706740955,10.36,155.86,155.83,11.60590765]
[1748706741149,10.36,155.86,155.82,18.02347895]
[1748706741665,10.36,155.86,155.82,6.4175713]
[1748706741860,10.36,155.86,155.82,18.02347895]
[1748706742657,0.28432314,155.85,155.78,16.04744187]
[1748706742861,11.89023079,155.85,155.8,37.60590765]
[1748706743235,0.28432314,155.85,155.81,11.60590765]
[1748706743640,10.36,155.86,155.82,11.60590765]
[1748706744063,0.28432314,155.85,155.81,11.60590765]
[1748706744267,0.28432314,155.85,155.82,11.60590765]
[1748706744596,10.36,155.86,155.82,11.60590765]
[1748706744944,10.36,155.86,155.83,6.41724956]
[1748706745143,10.36,155.86,155.83,18.02315721]
[1748706746144,10.36,155.86,155.85,11.60590765]
[1748706746470,10.36,155.86,155.84,11.60590765]
[1748706747046,10.36,155.86,155.82,11.60590765]
[1748706747241,10.36,155.86,155.82,18.02356905]
[1748706748274,10.36,155.86,155.83,11.60590765]
[1748706748444,10.36,155.86,155.84,11.60590765]
[1748706748646,10.36,155.86,155.85,11.60590765]
[1748706749174,10.36,155.86,155.85,18.0223337]
[1748706750161,10.36,155.86,155.83,18.02315721]
[1748706750472,10.36,155.86,155.85,11.60590765]
[1748706751072,10.36,155.86,155.85,18.0223337]
[1748706751962,10.36,155.86,155.85,6.41642605]
[1748706752853,10.36,155.86,155.84,18.02260577]
[1748706753490,10.36,155.86,155.84,6.41669812]
[1748706753654,10.36,155.86,155.83,18.02300271]
[1748706753989,21.96590765,155.86,155.81,18.02398094]
[1748706754546,0.28432314,155.85,155.81,18.02398094]
[1748706755773,10.36,155.86,155.84,11.60590765]
[1748706756554,11.60590765,155.85,155.81,6.41807329]
[1748706756755,21.96590765,155.86,155.8,6.41848523]
[1748706757083,10.36,155.86,155.82,11.60590765]
[1748706757967,21.96590765,155.86,155.81,11.60590765]
[1748706758854,10.36,155.86,155.82,6.4176614]
[1748706759182,10.36,155.86,155.82,18.02356905]
[1748706759602,10.36,155.86,155.82,6.4176614]
[1748706760560,10.36,155.86,155.83,11.60590765]
[1748706761278,10.36,155.86,155.83,18.02290108]
[1748706762582,9.36,155.86,155.83,18.02290108]
[1748706766369,9.36,155.86,155.83,6.41699343]
[1748706766882,9.36,155.86,155.83,18.02290108]
[1748706767391,9.36,155.86,155.83,6.41699343]
[1748706769069,9.36,155.86,155.81,6.41807329]
[1748706769274,9.36,155.86,155.82,11.60590765]
[1748706769880,9.36,155.86,155.83,11.60590765]
[1748706770211,9.36,155.86,155.84,6.41683778]
[1748706771501,9.36,155.86,155.84,18.02274543]
[1748706773175,9.36,155.86,155.81,16.04518323]
[1748706773376,9.36,155.86,155.83,11.60590765]
[1748706774478,9.36,155.86,155.84,11.60590765]
[1748706775403,9.36,155.86,155.85,6.41642605]
[1748706783721,9.36,155.86,155.83,11.60590765]
[1748706784510,9.36,155.86,155.84,11.60590765]
[1748706785607,9.36,155.86,155.85,6.41642605]
[1748706785924,9.36,155.86,155.85,18.0223337]
[1748706786290,11.53381565,155.89,155.85,18.0223337]
[1748706786487,11.53381565,155.89,155.86,11.60590765]
[1748706787181,10.34,155.9,155.88,11.60590765]
[1748706787823,10.34,155.9,155.88,18.02101922]
[1748706788493,10.34,155.9,155.89,11.60590765]
[1748706789819,10.34,155.9,155.89,18.0206873]
[1748706790191,10.34,155.94,155.89,18.0206873]
[1748706790400,10.34,155.94,155.91,11.60590765]